{"text_format":"3","workbook":"xlsx","n_sheets":3,"sheets":["Entrada de previsão","Previsão de vendas","Listas"],"not_rendered":{"charts":1,"images":4,"external_links":2,"defined_names":7},"read":"whole","date_system":"1900"}

{"sheet":"Entrada de previsão","index":0,"n_rows":29,"n_cols":11,"rows_kept":29}
[{"$nulls":10}," "]
[null,"Fabricação HLP S/A"]
[null,"Previsão de vendas"]
[null,"Confidencial"]
[]
[null,"Nome da oportunidade","Vendas \nAgente","Vendas \nregião","Vendas \ncategoria","Valor da previsão","Vendas  fase","Probabilidade de venda","Previsão  fechar","Previsão ponderada"]
[null,"Adatum Corporation","Rowan Murphy","EUA - Nordeste","Consultoria",{"v":150000,"d":"R$ 150,000"},"Aprovação formal",{"v":0.9,"d":"90%"},{"$f":"DATE(YEAR(TODAY())+1,1,1)","v":"2025-01-01"},{"$f":"Table_ForecastInput[[#This Row],[Valor da previsão]]*Table_ForecastInput[[#This Row],[Probabilidade de venda]]","v":{"v":135000,"d":"R$ 135,000"}}]
[null,"Adventure Works","Miho Kojima","EUA - Sudeste","Produtos",{"v":145200,"d":"R$ 145,200"},"Oportunidade",{"v":0.1,"d":"10%"},{"$f":"DATE(YEAR(TODAY())+1,2,1)","v":"2025-02-01"},{"$f":"Table_ForecastInput[[#This Row],[Valor da previsão]]*Table_ForecastInput[[#This Row],[Probabilidade de venda]]","v":{"v":14520,"d":"R$ 14,520"}}]
[null,"Alpine Ski House","Cora Thomas","EUA - Centro-Norte","Treinamento",{"v":162500,"d":"R$ 162,500"},"Necessidade identificada",{"v":0.2,"d":"20%"},{"$f":"DATE(YEAR(TODAY())+1,3,1)","v":"2025-03-01"},{"$f":"Table_ForecastInput[[#This Row],[Valor da previsão]]*Table_ForecastInput[[#This Row],[Probabilidade de venda]]","v":{"v":32500,"d":"R$ 32,500"}}]
[null,"Museu de Ciências Baldwin","Ellis Turner","EUA - Centro-Sul","Mistura",{"v":147500,"d":"R$ 147,500"},"Patrocínio",{"v":0.3,"d":"30%"},{"$f":"DATE(YEAR(TODAY())+1,4,1)","v":"2025-04-01"},{"$f":"Table_ForecastInput[[#This Row],[Valor da previsão]]*Table_ForecastInput[[#This Row],[Probabilidade de venda]]","v":{"v":44250,"d":"R$ 44,250"}}]
[null,"Blue Yonder Airlines","Suma Kini","EUA - Noroeste","Serviços profissionais",{"v":148000,"d":"R$ 148,000"},"Orçamento validado",{"v":0.4,"d":"40%"},{"$f":"DATE(YEAR(TODAY())+1,5,1)","v":"2025-05-01"},{"$f":"Table_ForecastInput[[#This Row],[Valor da previsão]]*Table_ForecastInput[[#This Row],[Probabilidade de venda]]","v":{"v":59200,"d":"R$ 59,200"}}]
[null,"City Power & Light","Rowan Murphy","EUA - Sudoeste","Suporte",{"v":175000,"d":"R$ 175,000"},"Análise das necessidades",{"v":0.5,"d":"50%"},{"$f":"DATE(YEAR(TODAY())+1,6,1)","v":"2025-06-01"},{"$f":"Table_ForecastInput[[#This Row],[Valor da previsão]]*Table_ForecastInput[[#This Row],[Probabilidade de venda]]","v":{"v":87500,"d":"R$ 87,500"}}]
[null,"Coho Vineyard","Cora Thomas","Canadá - Leste","Mistura",{"v":149000,"d":"R$ 149,000"},"Solução proposta",{"v":0.6,"d":"60%"},{"$f":"DATE(YEAR(TODAY())+1,7,1)","v":"2025-07-01"},{"$f":"Table_ForecastInput[[#This Row],[Valor da previsão]]*Table_ForecastInput[[#This Row],[Probabilidade de venda]]","v":{"v":89400,"d":"R$ 89,400"}}]
[null,"Coho Winery","Suma Kini","Canadá - Oeste","Treinamento",{"v":142000,"d":"R$ 142,000"},"Proposta escrita",{"v":0.7,"d":"70%"},{"$f":"DATE(YEAR(TODAY())+1,8,1)","v":"2025-08-01"},{"$f":"Table_ForecastInput[[#This Row],[Valor da previsão]]*Table_ForecastInput[[#This Row],[Probabilidade de venda]]","v":{"v":99400,"d":"R$ 99,400"}}]
[null,"Contoso, Ltd.","Cora Thomas","EMEA - França","Mistura",{"v":172500,"d":"R$ 172,500"},"Aprovação verbal",{"v":0.9,"d":"90%"},{"$f":"DATE(YEAR(TODAY())+1,10,1)","v":"2025-10-01"},{"$f":"Table_ForecastInput[[#This Row],[Valor da previsão]]*Table_ForecastInput[[#This Row],[Probabilidade de venda]]","v":{"v":155250,"d":"R$ 155,250"}}]
[null,"Contoso Pharmaceuticals","Ellis Turner","EMEA - Alemanha","Produtos",{"v":163500,"d":"R$ 163,500"},"Patrocínio",{"v":0.2,"d":"20%"},{"$f":"DATE(YEAR(TODAY())+1,11,1)","v":"2025-11-01"},{"$f":"Table_ForecastInput[[#This Row],[Valor da previsão]]*Table_ForecastInput[[#This Row],[Probabilidade de venda]]","v":{"v":32700,"d":"R$ 32,700"}}]
[null,"Consolidated Messenger","Suma Kini","EMEA - Itália","Produtos",{"v":155500,"d":"R$ 155,500"},"Aprovação formal",{"v":1,"d":"100%"},{"$f":"DATE(YEAR(TODAY())+1,12,1)","v":"2025-12-01"},{"$f":"Table_ForecastInput[[#This Row],[Valor da previsão]]*Table_ForecastInput[[#This Row],[Probabilidade de venda]]","v":{"v":155500,"d":"R$ 155,500"}}]
[null,"Fabrikam, Inc.","Ellis Turner","EMEA - Outros","Consultoria",{"v":166000,"d":"R$ 166,000"},"Oportunidade",{"v":0.1,"d":"10%"},{"$f":"DATE(YEAR(TODAY())+1,1,1)","v":"2025-01-01"},{"$f":"Table_ForecastInput[[#This Row],[Valor da previsão]]*Table_ForecastInput[[#This Row],[Probabilidade de venda]]","v":{"v":16600,"d":"R$ 16,600"}}]
[null,"Fourth Coffee","Cora Thomas","APSA - Ásia","Treinamento",{"v":180000,"d":"R$ 180,000"},"Orçamento validado",{"v":0.3,"d":"30%"},{"$f":"DATE(YEAR(TODAY())+1,3,1)","v":"2025-03-01"},{"$f":"Table_ForecastInput[[#This Row],[Valor da previsão]]*Table_ForecastInput[[#This Row],[Probabilidade de venda]]","v":{"v":54000,"d":"R$ 54,000"}}]
[null,"Graphic Design Institute","Miho Kojima","APSA - Pacífico","Serviços",{"v":140000,"d":"R$ 140,000"},"Solução proposta",{"v":0.6,"d":"60%"},{"$f":"DATE(YEAR(TODAY())+1,5,1)","v":"2025-05-01"},{"$f":"Table_ForecastInput[[#This Row],[Valor da previsão]]*Table_ForecastInput[[#This Row],[Probabilidade de venda]]","v":{"v":84000,"d":"R$ 84,000"}}]
[null,"Humongous Insurance","Rowan Murphy","APSA - México","Suporte",{"v":155000,"d":"R$ 155,000"},"Patrocínio",{"v":0.3,"d":"30%"},{"$f":"DATE(YEAR(TODAY())+1,6,1)","v":"2025-06-01"},{"$f":"Table_ForecastInput[[#This Row],[Valor da previsão]]*Table_ForecastInput[[#This Row],[Probabilidade de venda]]","v":{"v":46500,"d":"R$ 46,500"}}]
[null,"Litware, Inc.","Miho Kojima","APSA - Austrália","Serviços profissionais",{"v":173200,"d":"R$ 173,200"},"Análise das necessidades",{"v":0.5,"d":"50%"},{"$f":"DATE(YEAR(TODAY())+1,10,1)","v":"2025-10-01"},{"$f":"Table_ForecastInput[[#This Row],[Valor da previsão]]*Table_ForecastInput[[#This Row],[Probabilidade de venda]]","v":{"v":86600,"d":"R$ 86,600"}}]
[null,"Lucerne Publishing","Suma Kini","APSA - Outros","Serviços",{"v":146500,"d":"R$ 146,500"},"Solução proposta",{"v":0.6,"d":"60%"},{"$f":"DATE(YEAR(TODAY())+1,12,1)","v":"2025-12-01"},{"$f":"Table_ForecastInput[[#This Row],[Valor da previsão]]*Table_ForecastInput[[#This Row],[Probabilidade de venda]]","v":{"v":87900,"d":"R$ 87,900"}}]
[null,"Margie's Travel","Ellis Turner","EUA - Nordeste","Suporte",{"v":156750,"d":"R$ 156,750"},"Proposta escrita",{"v":0.7,"d":"70%"},{"$f":"DATE(YEAR(TODAY())+1,11,1)","v":"2025-11-01"},{"$f":"Table_ForecastInput[[#This Row],[Valor da previsão]]*Table_ForecastInput[[#This Row],[Probabilidade de venda]]","v":{"v":109725,"d":"R$ 109,725"}}]
[null,"Northwind Traders","Cora Thomas","EUA - Centro-Sul","Serviços Prof.",{"v":162000,"d":"R$ 162,000"},"Aprovação verbal",{"v":0.9,"d":"90%"},{"$f":"DATE(YEAR(TODAY())+1,2,1)","v":"2025-02-01"},{"$f":"Table_ForecastInput[[#This Row],[Valor da previsão]]*Table_ForecastInput[[#This Row],[Probabilidade de venda]]","v":{"v":145800,"d":"R$ 145,800"}}]
[null,"Proseware, Inc.","Ellis Turner","Canadá - Leste","Mistura",{"v":157000,"d":"R$ 157,000"},"Aprovação formal",{"v":1,"d":"100%"},{"$f":"DATE(YEAR(TODAY())+1,3,1)","v":"2025-03-01"},{"$f":"Table_ForecastInput[[#This Row],[Valor da previsão]]*Table_ForecastInput[[#This Row],[Probabilidade de venda]]","v":{"v":157000,"d":"R$ 157,000"}}]
[null,"School of Fine Art","Miho Kojima","EMEA - França","Serviços",{"v":173000,"d":"R$ 173,000"},"Orçamento validado",{"v":0.4,"d":"40%"},{"$f":"DATE(YEAR(TODAY())+1,4,1)","v":"2025-04-01"},{"$f":"Table_ForecastInput[[#This Row],[Valor da previsão]]*Table_ForecastInput[[#This Row],[Probabilidade de venda]]","v":{"v":69200,"d":"R$ 69,200"}}]
[null,"Southridge Video","Suma Kini","EMEA - Reino Unido","Mistura",{"v":171000,"d":"R$ 171,000"},"Análise das necessidades",{"v":0.5,"d":"50%"},{"$f":"DATE(YEAR(TODAY())+1,8,1)","v":"2025-08-01"},{"$f":"Table_ForecastInput[[#This Row],[Valor da previsão]]*Table_ForecastInput[[#This Row],[Probabilidade de venda]]","v":{"v":85500,"d":"R$ 85,500"}}]
[null,"Tailspin Toys","Rowan Murphy","APSA - Austrália","Produtos",{"v":168000,"d":"R$ 168,000"},"Solução proposta",{"v":0.6,"d":"60%"},{"$f":"DATE(YEAR(TODAY())+1,9,1)","v":"2025-09-01"},{"$f":"Table_ForecastInput[[#This Row],[Valor da previsão]]*Table_ForecastInput[[#This Row],[Probabilidade de venda]]","v":{"v":100800,"d":"R$ 100,800"}}]

{"sheet":"Previsão de vendas","index":1,"n_rows":19,"n_cols":18,"rows_kept":19}
[{"$nulls":14}," "]
[null,{"$f":"CompanyName","v":"Fabricação HLP S/A"}]
[null,"Gráfico de previsão"]
[null,"Confidencial"]
[null,"Mês inicial",{"$f":"DATE(YEAR(TODAY())+1,1,1)","v":"2025-01-01"}]
[null,"Mês","Mensal \nprevisão","Cumulativo",{"$nulls":11},{"$f":"B6","v":"Mês"},"Previsão mensal","Cumulativo"]
[null,{"$f":"DATE(YEAR(Starting_Month),MONTH(Starting_Month)+0,1)","v":"2025-01-01"},{"$f":"SUMIFS(Table_ForecastInput[Previsão ponderada],Table_ForecastInput[Previsão  fechar],\">=\"&'Previsão de vendas'!B7,Table_ForecastInput[Previsão  fechar],\"<=\"&DATE(YEAR('Previsão de vendas'!B7),MONTH('Previsão de vendas'!B7)+1,0))","v":{"v":151600,"d":"R$ 151,600"}},{"$f":"IF(ISNUMBER(D6),D6+C7,C7)","v":{"v":151600,"d":"R$ 151,600"}},{"$nulls":11},{"$f":"B7","v":"2025-01-01"},{"$f":"C7","v":{"v":151600,"d":"R$ 151,600"}},{"$f":"D7-C7","v":0}]
[null,{"$f":"DATE(YEAR(Starting_Month),MONTH(Starting_Month)+1,1)","v":"2025-02-01"},{"$f":"SUMIFS(Table_ForecastInput[Previsão ponderada],Table_ForecastInput[Previsão  fechar],\">=\"&'Previsão de vendas'!B8,Table_ForecastInput[Previsão  fechar],\"<=\"&DATE(YEAR('Previsão de vendas'!B8),MONTH('Previsão de vendas'!B8)+1,0))","v":{"v":160320,"d":"R$ 160,320"}},{"v":311920,"d":"R$ 311,920"},{"$nulls":11},"2025-02-01",{"$f":"C8","v":{"v":160320,"d":"R$ 160,320"}},{"$f":"D8-C8","v":{"v":151600,"d":"R$ 151,600"}}]
[null,{"$f":"DATE(YEAR(Starting_Month),MONTH(Starting_Month)+2,1)","v":"2025-03-01"},{"$f":"SUMIFS(Table_ForecastInput[Previsão ponderada],Table_ForecastInput[Previsão  fechar],\">=\"&'Previsão de vendas'!B9,Table_ForecastInput[Previsão  fechar],\"<=\"&DATE(YEAR('Previsão de vendas'!B9),MONTH('Previsão de vendas'!B9)+1,0))","v":{"v":243500,"d":"R$ 243,500"}},{"v":555420,"d":"R$ 555,420"},{"$nulls":11},"2025-03-01",{"v":243500,"d":"R$ 243,500"},{"v":311920,"d":"R$ 311,920"}]
[null,{"$f":"DATE(YEAR(Starting_Month),MONTH(Starting_Month)+3,1)","v":"2025-04-01"},{"$f":"SUMIFS(Table_ForecastInput[Previsão ponderada],Table_ForecastInput[Previsão  fechar],\">=\"&'Previsão de vendas'!B10,Table_ForecastInput[Previsão  fechar],\"<=\"&DATE(YEAR('Previsão de vendas'!B10),MONTH('Previsão de vendas'!B10)+1,0))","v":{"v":113450,"d":"R$ 113,450"}},{"v":668870,"d":"R$ 668,870"},{"$nulls":11},"2025-04-01",{"v":113450,"d":"R$ 113,450"},{"v":555420,"d":"R$ 555,420"}]
[null,{"$f":"DATE(YEAR(Starting_Month),MONTH(Starting_Month)+4,1)","v":"2025-05-01"},{"$f":"SUMIFS(Table_ForecastInput[Previsão ponderada],Table_ForecastInput[Previsão  fechar],\">=\"&'Previsão de vendas'!B11,Table_ForecastInput[Previsão  fechar],\"<=\"&DATE(YEAR('Previsão de vendas'!B11),MONTH('Previsão de vendas'!B11)+1,0))","v":{"v":143200,"d":"R$ 143,200"}},{"v":812070,"d":"R$ 812,070"},{"$nulls":11},"2025-05-01",{"v":143200,"d":"R$ 143,200"},{"v":668870,"d":"R$ 668,870"}]
[null,{"$f":"DATE(YEAR(Starting_Month),MONTH(Starting_Month)+5,1)","v":"2025-06-01"},{"$f":"SUMIFS(Table_ForecastInput[Previsão ponderada],Table_ForecastInput[Previsão  fechar],\">=\"&'Previsão de vendas'!B12,Table_ForecastInput[Previsão  fechar],\"<=\"&DATE(YEAR('Previsão de vendas'!B12),MONTH('Previsão de vendas'!B12)+1,0))","v":{"v":134000,"d":"R$ 134,000"}},{"v":946070,"d":"R$ 946,070"},{"$nulls":11},"2025-06-01",{"v":134000,"d":"R$ 134,000"},{"v":812070,"d":"R$ 812,070"}]
[null,{"$f":"DATE(YEAR(Starting_Month),MONTH(Starting_Month)+6,1)","v":"2025-07-01"},{"$f":"SUMIFS(Table_ForecastInput[Previsão ponderada],Table_ForecastInput[Previsão  fechar],\">=\"&'Previsão de vendas'!B13,Table_ForecastInput[Previsão  fechar],\"<=\"&DATE(YEAR('Previsão de vendas'!B13),MONTH('Previsão de vendas'!B13)+1,0))","v":{"v":89400,"d":"R$ 89,400"}},{"v":1035470,"d":"R$ 1,035,470"},{"$nulls":11},"2025-07-01",{"v":89400,"d":"R$ 89,400"},{"v":946070,"d":"R$ 946,070"}]
[null,{"$f":"DATE(YEAR(Starting_Month),MONTH(Starting_Month)+7,1)","v":"2025-08-01"},{"$f":"SUMIFS(Table_ForecastInput[Previsão ponderada],Table_ForecastInput[Previsão  fechar],\">=\"&'Previsão de vendas'!B14,Table_ForecastInput[Previsão  fechar],\"<=\"&DATE(YEAR('Previsão de vendas'!B14),MONTH('Previsão de vendas'!B14)+1,0))","v":{"v":184900,"d":"R$ 184,900"}},{"v":1220370,"d":"R$ 1,220,370"},{"$nulls":11},"2025-08-01",{"v":184900,"d":"R$ 184,900"},{"v":1035470,"d":"R$ 1,035,470"}]
[null,{"$f":"DATE(YEAR(Starting_Month),MONTH(Starting_Month)+8,1)","v":"2025-09-01"},{"$f":"SUMIFS(Table_ForecastInput[Previsão ponderada],Table_ForecastInput[Previsão  fechar],\">=\"&'Previsão de vendas'!B15,Table_ForecastInput[Previsão  fechar],\"<=\"&DATE(YEAR('Previsão de vendas'!B15),MONTH('Previsão de vendas'!B15)+1,0))","v":{"v":100800,"d":"R$ 100,800"}},{"v":1321170,"d":"R$ 1,321,170"},{"$nulls":11},"2025-09-01",{"v":100800,"d":"R$ 100,800"},{"v":1220370,"d":"R$ 1,220,370"}]
[null,{"$f":"DATE(YEAR(Starting_Month),MONTH(Starting_Month)+9,1)","v":"2025-10-01"},{"$f":"SUMIFS(Table_ForecastInput[Previsão ponderada],Table_ForecastInput[Previsão  fechar],\">=\"&'Previsão de vendas'!B16,Table_ForecastInput[Previsão  fechar],\"<=\"&DATE(YEAR('Previsão de vendas'!B16),MONTH('Previsão de vendas'!B16)+1,0))","v":{"v":241850,"d":"R$ 241,850"}},{"v":1563020,"d":"R$ 1,563,020"},{"$nulls":11},"2025-10-01",{"v":241850,"d":"R$ 241,850"},{"v":1321170,"d":"R$ 1,321,170"}]
[null,{"$f":"DATE(YEAR(Starting_Month),MONTH(Starting_Month)+10,1)","v":"2025-11-01"},{"$f":"SUMIFS(Table_ForecastInput[Previsão ponderada],Table_ForecastInput[Previsão  fechar],\">=\"&'Previsão de vendas'!B17,Table_ForecastInput[Previsão  fechar],\"<=\"&DATE(YEAR('Previsão de vendas'!B17),MONTH('Previsão de vendas'!B17)+1,0))","v":{"v":142425,"d":"R$ 142,425"}},{"v":1705445,"d":"R$ 1,705,445"},{"$nulls":11},"2025-11-01",{"v":142425,"d":"R$ 142,425"},{"v":1563020,"d":"R$ 1,563,020"}]
[null,{"$f":"DATE(YEAR(Starting_Month),MONTH(Starting_Month)+11,1)","v":"2025-12-01"},{"$f":"SUMIFS(Table_ForecastInput[Previsão ponderada],Table_ForecastInput[Previsão  fechar],\">=\"&'Previsão de vendas'!B18,Table_ForecastInput[Previsão  fechar],\"<=\"&DATE(YEAR('Previsão de vendas'!B18),MONTH('Previsão de vendas'!B18)+1,0))","v":{"v":243400,"d":"R$ 243,400"}},{"v":1948845,"d":"R$ 1,948,845"},{"$nulls":11},"2025-12-01",{"v":243400,"d":"R$ 243,400"},{"v":1705445,"d":"R$ 1,705,445"}]
[{"$nulls":14}," "]

{"sheet":"Listas","index":2,"n_rows":24,"n_cols":5,"rows_kept":24}
[]
[null,{"$f":"CompanyName","v":"Fabricação HLP S/A"}]
[null,"Listas de Vendas"]
[null,"Confidencial"]
[]
[null,"Agentes de vendas","Regiões de vendas","Categorias de vendas","Fases de vendas"]
[null,"Rowan Murphy","EUA - Nordeste","Consultoria","Necessidade identificada"]
[null,"Miho Kojima","EUA - Sudeste","Mistura","Oportunidade"]
[null,"Cora Thomas","EUA - Centro-Norte","Produtos","Análise das necessidades"]
[null,"Ellis Turner","EUA - Centro-Sul","Serviços profissionais","Solução proposta"]
[null,"Suma Kini","EUA - Noroeste","Serviços","Proposta escrita"]
[null,null,"EUA - Sudoeste","Suporte","Aprovação verbal"]
[null,null,"Canadá - Leste","Treinamento","Aprovação formal"]
[null,null,"Canadá - Oeste",null,"Orçamento validado"]
[null,null,"EMEA - França",null,"Patrocínio"]
[null,null,"EMEA - Alemanha"]
[null,null,"EMEA - Itália"]
[null,null,"EMEA - Outros"]
[null,null,"APSA - Ásia"]
[null,null,"APSA - Pacífico"]
[null,null,"APSA - México"]
[null,null,"APSA - Austrália"]
[null,null,"APSA - Outros"]
[null,null,"EMEA - REINO UNIDO"]